fUSD/lending_fUSD_20240406
["ID","MTS","AMOUNT","RATE_DAILY","PERIOD"]
[321665039,1712362284519,-20072.4272599,0.00024983,2]
[321665040,1712362284529,-20875.4451049,0.00024983,2]
[321665041,1712362284538,-55909.33229114,0.00024983,2]
[321665042,1712362285049,-95684.58928066,0.00024983,2]
[321665043,1712362285058,-158223.4498755,0.00024983,2]
[321665044,1712362285068,-164852.9781792,0.00024983,2]
[321665045,1712362285079,-171482.5064829,0.00024983,2]
[321665046,1712362285090,-178112.0347865,0.00024983,2]
[321665047,1712362285100,-54180.184142,0.00024983,2]
[321665048,1712362285109,-56358.6053213,0.00024983,2]
[321665049,1712362285120,-58537.0265007,0.00024983,2]
[321665050,1712362285130,-60715.44768,0.00024983,2]
[321665051,1712362285140,-62893.8688594,0.00024983,2]
[321665052,1712362285150,-3669.2798111,0.00024983,2]
[321665053,1712362285161,-3802.6969114,0.00024983,2]
[321665054,1712362285172,-3936.1140118,0.00024983,2]
[321665055,1712362285182,-4069.5311121,0.00024983,2]
[321665056,1712362285192,-4202.9482124,0.00024983,2]
[321665057,1712362285203,-19221.704747,0.00024983,2]
[321665058,1712362285213,-19920.6168612,0.00024983,2]
[321665059,1712362285223,-20619.5289754,0.00024983,2]
[321665060,1712362285233,-21318.4410896,0.00024983,2]
[321665061,1712362285245,-22017.3532039,0.00024983,2]
[321665062,1712362285255,-500.0,0.00024996,2]
[321665063,1712362285265,-503.29221155,0.00024996,2]
[321665064,1712362285276,-1834.10744535,0.00024998,2]
[321665065,1712362285286,-5528.27738706,0.00024998,2]
[321665066,1712362285296,-557.13129815,0.00024998,2]
[321665067,1712362285307,-414.96011924,0.00024998,2]
[321665068,1712362285317,-530755.66072673,0.00024998,2]
[321665069,1712362285326,-1037.40330416,0.00024999,2]
[321665070,1712362285337,-150.01,0.00024999,2]
[321665071,1712362285347,-3794.79613912,0.00024999,2]
[321665072,1712362285358,-7024218.70331566,0.00025,2]
[321665073,1712362285372,-1710018.85341682,0.00025,2]
[321665074,1712362285391,-808.75030777,0.00025,2]
[321665075,1712362285403,-741.27723955,0.00025,2]
[321665076,1712362285415,-420.8888349,0.00025,2]
[321665077,1712362285427,-324.95664198,0.00025,2]
[321665078,1712362285439,-474.38612961,0.00025,2]
[321665079,1712362285454,-3956.80971926,0.00025,2]
[321665080,1712362285819,-155.0,0.00021043,2]
[321665081,1712362285830,-682.09843214,0.00021043,2]
[321665082,1712362285840,-1000.0,0.00021043,2]
[321665083,1712362285850,-1467.24558755,0.00021046,2]
[321665084,1712362285905,-1912.23705768,0.00021046,2]
[321665085,1712362285916,-348.90376104,0.00021046,2]
[321665086,1712362285948,-589.20498977,0.00021046,2]
[321665087,1712362286153,150.0,0.00021043,2]
[321665088,1712362286677,-387.64314348,0.00021043,2]
[321665089,1712362286687,-4561.25815505,0.00021046,2]
[321665090,1712362286698,-198848.90377511,0.00021057,2]
[321665091,1712362286712,-328.77499995,0.00021057,2]
[321665092,1712362287243,-339.0,0.00021057,2]
[321665093,1712362297071,-150.0,0.00021044,2]
[321665094,1712362297654,-150.0,0.00021044,2]
[321665095,1712362308311,-150.0,0.00021043,2]
[321665098,1712362329047,-150.0,0.00021042,2]
[321665099,1712362329433,-150.0,0.00021042,2]
[321665100,1712362329875,-150.0,0.00021042,2]
[321665101,1712362340453,-150.0,0.00021041,2]
[321665102,1712362340943,-150.0,0.0002104,2]
[321665103,1712362341544,60755.27870013,0.00020955,2]
[321665104,1712362341651,-150.0,0.0002104,2]
[321665105,1712362341879,5800.0,0.00018695,2]
[321665106,1712362342319,-150.0,0.0002104,2]
[321665107,1712362342969,-150.0,0.0002104,2]
[321665108,1712362343676,-150.0,0.0002104,2]
[321665109,1712362344484,-150.0,0.0002104,2]
[321665110,1712362345368,-150.0,0.00021032,2]
[321665111,1712362345996,-150.0,0.00021032,2]
[321665112,1712362346657,-150.0,0.00021032,2]
[321665113,1712362347338,-150.0,0.00021032,2]
[321665114,1712362347912,-150.0,0.00021032,2]
[321665115,1712362348381,-150.0,0.00021032,2]
[321665116,1712362348867,-150.0,0.00021032,2]
[321665117,1712362348975,150.0,0.00015793,2]
[321665118,1712362348995,150.0,0.00015793,2]
[321665119,1712362350331,-150.0,0.00021032,2]
[321665120,1712362350790,-150.0,0.00021032,2]
[321665121,1712362351346,-150.0,0.00021032,2]
[321665122,1712362351907,-150.0,0.00021032,2]
[321665123,1712362352575,-150.0,0.00021032,2]
[321665124,1712362353181,-150.0,0.00021032,2]
[321665125,1712362353685,-150.0,0.00021032,2]
[321665126,1712362354296,-150.0,0.00021032,2]
[321665127,1712362354968,-150.0,0.00021032,2]
[321665128,1712362356839,-150.0,0.00021032,2]
[321665129,1712362357373,-150.0,0.00021032,2]
[321665130,1712362358144,-150.0,0.00021032,2]
[321665131,1712362358622,-150.0,0.00021032,2]
[321665132,1712362359114,-150.0,0.00021032,2]
[321665133,1712362359498,-150.0,0.00021032,2]
[321665134,1712362360090,-150.0,0.00021032,2]
[321665135,1712362360581,-150.0,0.00021031,2]
[321665136,1712362366636,150.0,0.00020597,2]
[321665137,1712362366659,150.0,0.00020597,2]
[321665138,1712362366679,48.31,0.00020597,2]
[321665139,1712362366951,101.69,0.00012,2]
[321665140,1712362366971,150.0,0.00012,2]
[321665141,1712362366991,150.0,0.00012,2]
[321665142,1712362367011,48.31,0.00012,2]
[321665143,1712362398207,150.0,0.00020955,2]
[321665144,1712362398229,150.0,0.00020955,2]
[321665145,1712362398250,32.12884583,0.00020955,2]
[321665146,1712362420915,150.0,0.00016866,2]
[321665147,1712362420937,53.43,0.00016866,2]
[321665148,1712362434656,96.57,0.00020971,2]
[321665149,1712362434678,109.53,0.00020971,2]
[321665150,1712362435232,-196.94371571,0.00021027,2]
[321665151,1712362436522,-150.0,0.00021027,2]
[321665152,1712362523629,40.47,0.00020955,2]
[321665153,1712362523662,291.65884583,0.00020955,2]
[321665154,1712362619050,8663.46920672,0.00020955,2]
[321665155,1712362638920,332.12884583,0.00020955,2]
[321665156,1712362687545,159.16626768,0.00020913,2]
[321665157,1712362754626,332.12884583,0.00020955,2]
[321665158,1712362803621,205.15,0.00020594,2]
[321665159,1712362821748,253.40930954,0.00020955,2]
[321665160,1712363101378,1450.0,0.00021,3]
[321665161,1712363102448,1500.0,0.00023,3]
[321665166,1712363431574,-735.98049015,0.00018645,2]
[321665167,1712363431583,-379.76847338,0.00018646,2]
[321665168,1712363431595,-544.85215758,0.00018646,2]
[321665169,1712363431640,-285.68021368,0.00018646,2]
[321665170,1712363431649,-500.0,0.00018647,2]
[321665171,1712363431658,-404.47743846,0.00018647,2]
[321665172,1712363431668,-428.82861054,0.00018647,2]
[321665173,1712363431679,-121.55379839,0.00018647,2]
[321665174,1712363431688,-626.03276666,0.00018647,2]
[321665175,1712363431776,-373.96723334,0.00018647,2]
[321665176,1712363431785,-341.34052644,0.00018647,2]
[321665177,1712363431796,-1057.21066063,0.00018647,2]
[321665178,1712363431886,-882.0,0.00018647,2]
[321665240,1712363438702,-34366.39558923,0.00018647,2]
[321665241,1712363438712,-330.89,0.00018676,2]
[321665242,1712363438721,-160.0,0.00018686,2]
[321665243,1712363438730,-160.0,0.00018695,2]
[321665244,1712363438740,-1000.0,0.00020186,2]
[321665245,1712363438749,-169.31,0.0002022,2]
[321665246,1712363438760,-1436.61,0.0002026,2]
[321665247,1712363438770,-158.83,0.00020422,2]
[321665248,1712363438781,-150.99,0.00020422,2]
[321665249,1712363438790,-158.83,0.00020688,2]
[321665250,1712363438799,-330.89,0.0002094,2]
[321665251,1712363438809,-499.99,0.0002094,2]
[321665252,1712363438823,-3480.42548168,0.00020943,2]
[321665253,1712363438832,-158.83,0.00020954,2]
[321665254,1712363438841,-8266.04796963,0.00020956,2]
[321665255,1712363438850,-54654.40989919,0.00020956,2]
[321665256,1712363438860,-1702.5796773,0.00020956,2]
[321665257,1712363438869,-151.90041171,0.00020956,2]
[321665258,1712363438879,-112.97889526,0.00021031,2]
[321665259,1712363438888,-10086.48042962,0.00021032,2]
[321665260,1712363438897,-96.75055822,0.00021044,2]
[321665261,1712363438909,-1037.40330416,0.00021053,2]
[321665262,1712363438920,-5528.27738706,0.00021053,2]
[321665263,1712363438929,-930.4421379,0.00021053,2]
[321665264,1712363438939,-1834.10744535,0.00021053,2]
[321665265,1712363438949,-557.13129815,0.00021053,2]
[321665266,1712363438958,-414.96011924,0.00021053,2]
[321665267,1712363438969,-156.31285681,0.00021053,2]
[321665268,1712363438978,-155.69982614,0.00021053,2]
[321665269,1712363438988,-366.59524681,0.00021054,2]
[321665270,1712363438998,-223.82617851,0.00021055,2]
[321665271,1712363439009,-156.38278785,0.00021055,2]
[321665272,1712363439019,-2982.92557871,0.00021055,2]
[321665273,1712363439028,-907.54957695,0.00021055,2]
[321665274,1712363439038,-3191.39178917,0.00021055,2]
[321665275,1712363439047,-156.80299087,0.00021055,2]
[321665276,1712363439056,-256.48888243,0.00021055,2]
[321665277,1712363439065,-624.81043763,0.00021055,2]
[321665278,1712363439074,-11040.27709699,0.00021055,2]
[321665279,1712363439083,-315.50532939,0.00021055,2]
[321665280,1712363439092,-155.0,0.00021055,2]
[321665281,1712363439101,-155.0,0.00021055,2]
[321665282,1712363439110,-155.0,0.00021055,2]
[321665283,1712363439119,-4314.61098704,0.00021055,2]
[321665284,1712363439129,-286.35579914,0.00021055,2]
[321665285,1712363439138,-339.61488191,0.00021055,2]
[321665286,1712363439148,-440.42038228,0.00021055,2]
[321665287,1712363439157,-2178.52992771,0.00021055,2]
[321665288,1712363439166,-500.0,0.00021055,2]
[321665289,1712363439175,-210.56332717,0.00021055,2]
[321665290,1712363439185,-683281.82531065,0.00021055,2]
[321665291,1712363439194,-981.27831257,0.00021056,2]
[321665292,1712363439204,-357.31779952,0.00021056,2]
[321665293,1712363439214,-181.42766065,0.00021056,2]
[321665294,1712363439222,-175444.51753151,0.00021056,2]
[321665295,1712363439230,-233.86370299,0.00021056,2]
[321665296,1712363439239,-397.69132164,0.00021056,2]
[321665297,1712363439248,-158.83,0.0002122,2]
[321665298,1712363439262,-1702.57967725,0.00021315,2]
[321665299,1712363439273,-8266.04796955,0.00021394,2]
[321665300,1712363439283,-54654.40989911,0.00021394,2]
[321665301,1712363439292,-158.83,0.00021486,2]
[321665302,1712363439301,-166.94,0.00021581,2]
[321665303,1712363439311,-1702.57967725,0.00021673,2]
[321665304,1712363439320,-259.21,0.00021725,2]
[321665305,1712363439339,-151.9004117,0.00021745,2]
[321665306,1712363439350,-158.13,0.00021818,2]
[321665307,1712363439360,-8266.04796955,0.00021832,2]
[321665308,1712363439370,-54654.40989911,0.00021832,2]
[321665309,1712363439379,-158.13,0.00021836,2]
[321665310,1712363439389,-158.13,0.00021854,2]
[321665311,1712363439399,-158.13,0.00021873,2]
[321665312,1712363439408,-158.13,0.00021891,2]
[321665313,1712363439418,-158.13,0.00021909,2]
[321665314,1712363439428,-158.13,0.00021927,2]
[321665315,1712363439438,-682.52757031,0.00022,2]
[321665316,1712363439447,-1702.57967725,0.00022032,2]
[321665317,1712363439457,-8266.04796955,0.00022271,2]
[321665318,1712363439467,-54654.40989911,0.00022271,2]
[321665319,1712363439476,-1702.57967725,0.0002239,2]
[321665320,1712363439487,-200.0,0.000225,2]
[321665321,1712363439496,-151.9004117,0.00022534,2]
[321665323,1712363439509,-8266.04796955,0.00022709,2]
[321665324,1712363439519,-54654.40989911,0.00022709,2]
[321665326,1712363439529,-1000.0,0.00022709,2]
[321665328,1712363439539,-1702.57967725,0.00022749,2]
[321665330,1712363439549,-166.94,0.00022769,2]
[321665332,1712363439559,-526813.23431891,0.0002288,2]
[321665334,1712363439569,-184.0,0.00022916,2]
[321665337,1712363439579,-1436.61,0.00023,2]
[321665339,1712363439588,-150.0,0.00023,2]
[321665341,1712363439598,-1702.57967725,0.00023107,2]
[321665343,1712363439607,-8266.04796955,0.00023147,2]
[321665345,1712363439617,-54654.40989911,0.00023147,2]
[321665347,1712363439626,-330.89,0.00023204,2]
[321665349,1712363439636,-2144.24137074,0.00023254,2]
[321665351,1712363439646,-2144.24137073,0.00023254,2]
[321665353,1712363439656,-151.9004117,0.00023322,2]
[321665355,1712363439666,-1702.57967725,0.00023466,2]
[321665357,1712363439675,-150.0,0.000235,2]
[321665359,1712363439684,-8266.04796955,0.00023585,2]
[321665361,1712363439694,-54654.40989911,0.00023585,2]
[321665363,1712363439704,-184.0,0.00023726,2]
[321665365,1712363439713,-1702.57967725,0.00023824,2]
[321665367,1712363439723,-519.63,0.00023909,2]
[321665369,1712363439732,-348.46,0.00023909,2]
[321665371,1712363439742,-166.94,0.00023956,2]
[321665373,1712363439751,-224.46237227,0.00024,2]
[321665375,1712363439766,-150.0,0.00024,2]
[321665377,1712363439776,-8266.04796955,0.00024024,2]
[321665379,1712363439785,-54654.40989911,0.00024024,2]
[321665381,1712363439796,-1810.56,0.00024055,2]
[321665383,1712363439805,-151.9004117,0.00024111,2]
[321665385,1712363439816,-1702.57967725,0.00024183,2]
[321665387,1712363439829,-829.86,0.00024192,2]
[321665389,1712363439838,-300.0,0.00024192,2]
[321665392,1712363439849,-300.0,0.00024192,2]
[321665393,1712363439858,-348.76,0.00024192,2]
[321665394,1712363439868,-348.76,0.00024192,2]
[321665395,1712363439881,-348.76,0.00024192,2]
[321665396,1712363439891,-150.0,0.00024192,2]
[321665397,1712363439903,-150.0,0.00024192,2]
[321665398,1712363439913,-519.63,0.00024192,2]
[321665399,1712363439922,-348.76,0.00024192,2]
[321665400,1712363439932,-834.48,0.00024192,2]
[321665401,1712363439942,-323.62,0.00024192,2]
[321665402,1712363439951,-519.63,0.00024192,2]
[321665403,1712363439961,-296.11,0.00024192,2]
[321665404,1712363439970,-296.56,0.00024192,2]
[321665405,1712363439980,-348.76,0.00024192,2]
[321665406,1712363439989,-348.76,0.00024192,2]
[321665407,1712363439998,-383.46,0.00024192,2]
[321665408,1712363440012,-1433.58977005,0.00024341,2]
[321665409,1712363440027,-515.0,0.000244,2]
[321665410,1712363440037,-1191.0,0.000244,2]
[321665411,1712363440046,-1433.58977005,0.00024402,2]
[321665412,1712363440061,-333.040609,0.00024406,2]
[321665413,1712363440071,-333.040609,0.00024406,2]
[321665414,1712363440080,-333.040609,0.00024406,2]
[321665415,1712363440090,-333.040609,0.00024406,2]
[321665416,1712363440101,-333.040609,0.00024406,2]
[321665417,1712363440110,-333.040609,0.00024406,2]
[321665419,1712363440120,-333.040609,0.00024406,2]
[321665421,1712363440131,-333.040609,0.00024406,2]
[321665422,1712363440140,-333.040609,0.00024406,2]
[321665423,1712363440149,-333.040609,0.00024406,2]
[321665424,1712363440160,-8266.04796955,0.00024462,2]
[321665425,1712363440169,-54654.40989911,0.00024462,2]
[321665426,1712363440179,-150.0,0.000245,2]
[321665427,1712363440189,-184.0,0.00024537,2]
[321665428,1712363440198,-1702.57967725,0.00024541,2]
[321665429,1712363440208,-7500.0,0.00024557,2]
[321665430,1712363440218,-1000.0,0.00024557,2]
[321665431,1712363440227,-10000.0,0.00024557,2]
[321665432,1712363440237,-153.00377094,0.00024557,2]
[321665433,1712363440247,-500.0,0.00024657,2]
[321665434,1712363440258,-500.0,0.00024657,2]
[321665435,1712363440268,-500.0,0.00024657,2]
[321665436,1712363440277,-510.46948552,0.00024657,2]
[321665437,1712363440286,-500.0,0.00024657,2]
[321665438,1712363440296,-500.0,0.00024657,2]
[321665439,1712363440305,-500.0,0.00024657,2]
[321665440,1712363440315,-500.0,0.00024657,2]
[321665441,1712363440325,-500.0,0.00024657,2]
[321665442,1712363440334,-536.52845145,0.00024657,2]
[321665443,1712363440343,-500.0,0.00024657,2]
[321665444,1712363440353,-500.0,0.00024657,2]
[321665445,1712363440363,-500.0,0.00024657,2]
[321665446,1712363440373,-500.0,0.00024657,2]
[321665447,1712363440383,-500.0,0.00024657,2]
[321665448,1712363440393,-500.0,0.00024657,2]
[321665449,1712363440403,-500.0,0.00024657,2]
[321665450,1712363440414,-500.0,0.00024657,2]
[321665451,1712363440423,-500.0,0.00024657,2]
[321665452,1712363440433,-500.0,0.00024657,2]
[321665453,1712363440443,-500.0,0.00024657,2]
[321665454,1712363440453,-500.0,0.00024657,2]
[321665455,1712363440463,-500.0,0.00024657,2]
[321665456,1712363440474,-500.0,0.00024657,2]
[321665457,1712363440484,-500.0,0.00024657,2]
[321665458,1712363440493,-500.0,0.00024657,2]
[321665459,1712363440503,-500.0,0.00024657,2]
[321665460,1712363440518,-500.0,0.00024657,2]
[321665461,1712363440528,-500.0,0.00024657,2]
[321665462,1712363440537,-500.0,0.00024657,2]
[321665463,1712363440548,-500.0,0.00024657,2]
[321665464,1712363440558,-500.0,0.00024657,2]
[321665465,1712363440567,-500.0,0.00024657,2]
[321665466,1712363440577,-500.0,0.00024657,2]
[321665467,1712363440587,-500.0,0.00024657,2]
[321665468,1712363440597,-500.0,0.00024657,2]
[321665469,1712363440606,-500.0,0.00024657,2]
[321665470,1712363440617,-500.0,0.00024657,2]
[321665471,1712363440628,-500.0,0.00024657,2]
[321665472,1712363440638,-500.0,0.00024657,2]
[321665473,1712363440648,-500.0,0.00024657,2]
[321665474,1712363440657,-429.88880456,0.00024657,2]
[321665475,1712363440668,-170.75,0.00024657,2]
[321665476,1712363440678,-500.0,0.00024657,2]
[321665477,1712363440689,-500.0,0.00024657,2]
[321665478,1712363440699,-500.0,0.00024657,2]
[321665479,1712363440709,-500.0,0.00024657,2]
[321665480,1712363440719,-500.0,0.00024657,2]
[321665481,1712363440729,-647.44443209,0.00024657,2]
[321665482,1712363440739,-500.0,0.00024657,2]
[321665483,1712363440749,-500.0,0.00024657,2]
[321665484,1712363440761,-500.0,0.00024657,2]
[321665485,1712363440772,-524.68438095,0.00024657,2]
[321665486,1712363440781,-500.0,0.00024657,2]
[321665487,1712363440792,-500.0,0.00024657,2]
[321665488,1712363440803,-583.29350193,0.00024657,2]
[321665489,1712363440814,-500.0,0.00024657,2]
[321665490,1712363440827,-500.0,0.00024657,2]
[321665491,1712363440837,-500.0,0.00024657,2]
[321665492,1712363440846,-500.0,0.00024657,2]
[321665493,1712363440857,-500.0,0.00024657,2]
[321665494,1712363440866,-500.0,0.00024657,2]
[321665495,1712363440875,-504.72203795,0.00024657,2]
[321665496,1712363440884,-500.0,0.00024657,2]
[321665497,1712363440893,-500.0,0.00024657,2]
[321665498,1712363440904,-500.0,0.00024657,2]
[321665499,1712363440913,-500.0,0.00024657,2]
[321665500,1712363440922,-500.0,0.00024657,2]
[321665501,1712363440932,-565.65129386,0.00024657,2]
[321665502,1712363440941,-500.0,0.00024657,2]
[321665503,1712363440951,-500.0,0.00024657,2]
[321665504,1712363440961,-500.0,0.00024657,2]
[321665505,1712363440971,-500.0,0.00024657,2]
[321665506,1712363440981,-500.0,0.00024657,2]
[321665507,1712363440991,-500.0,0.00024657,2]
[321665508,1712363441001,-500.0,0.00024657,2]
[321665509,1712363441013,-500.0,0.00024657,2]
[321665510,1712363441022,-500.0,0.00024657,2]
[321665511,1712363441031,-532.54812991,0.00024657,2]
[321665512,1712363441040,-500.0,0.00024657,2]
[321665513,1712363441051,-500.0,0.00024657,2]
[321665514,1712363441062,-500.0,0.00024657,2]
[321665515,1712363441072,-500.0,0.00024657,2]
[321665516,1712363441082,-500.0,0.00024657,2]
[321665517,1712363441091,-500.0,0.00024657,2]
[321665518,1712363441101,-500.0,0.00024657,2]
[321665519,1712363441112,-500.0,0.00024657,2]
[321665520,1712363441122,-500.0,0.00024657,2]
[321665521,1712363441132,-500.0,0.00024657,2]
[321665522,1712363441141,-500.0,0.00024657,2]
[321665523,1712363441152,-500.0,0.00024657,2]
[321665524,1712363441161,-500.0,0.00024657,2]
[321665525,1712363441170,-500.0,0.00024657,2]
[321665526,1712363441180,-500.0,0.00024657,2]
[321665527,1712363441189,-500.0,0.00024657,2]
[321665528,1712363441198,-500.0,0.00024657,2]
[321665529,1712363441208,-500.0,0.00024657,2]
[321665530,1712363441217,-384.68620925,0.00024657,2]
[321665531,1712363441227,-500.0,0.00024657,2]
[321665532,1712363441237,-527.08,0.00024657,2]
[321665533,1712363441246,-500.0,0.00024657,2]
[321665534,1712363441257,-500.0,0.00024657,2]
[321665535,1712363441266,-500.0,0.00024657,2]
[321665536,1712363441276,-500.0,0.00024657,2]
[321665537,1712363441285,-500.0,0.00024657,2]
[321665538,1712363441294,-500.0,0.00024657,2]
[321665539,1712363441303,-500.0,0.00024657,2]
[321665540,1712363441313,-500.0,0.00024657,2]
[321665541,1712363441323,-500.0,0.00024657,2]
[321665542,1712363441332,-500.0,0.00024657,2]
[321665543,1712363441341,-367.45,0.00024657,2]
[321665544,1712363441351,-500.0,0.00024657,2]
[321665545,1712363441360,-500.0,0.00024657,2]
[321665546,1712363441369,-500.0,0.00024657,2]
[321665547,1712363441378,-500.0,0.00024657,2]
[321665548,1712363441387,-553.07876132,0.00024657,2]
[321665549,1712363441397,-499.7087706,0.00024657,2]
[321665550,1712363441406,-519.58870903,0.00024657,2]
[321665551,1712363441415,-500.0,0.00024657,2]
[321665552,1712363441424,-500.0,0.00024657,2]
[321665553,1712363441433,-500.0,0.00024657,2]
[321665554,1712363441442,-500.0,0.00024657,2]
[321665555,1712363441451,-500.0,0.00024657,2]
[321665556,1712363441462,-500.0,0.00024657,2]
[321665557,1712363441472,-500.0,0.00024657,2]
[321665558,1712363441482,-500.0,0.00024657,2]
[321665559,1712363441491,-500.0,0.00024657,2]
[321665560,1712363441500,-500.0,0.00024657,2]
[321665561,1712363441510,-500.0,0.00024657,2]
[321665562,1712363441520,-500.0,0.00024657,2]
[321665563,1712363441529,-500.0,0.00024657,2]
[321665564,1712363441538,-500.0,0.00024657,2]
[321665565,1712363441547,-500.0,0.00024657,2]
[321665566,1712363441556,-500.0,0.00024657,2]
[321665567,1712363441566,-500.0,0.00024657,2]
[321665568,1712363441576,-500.0,0.00024657,2]
[321665569,1712363441585,-500.0,0.00024657,2]
[321665570,1712363441594,-527.31901502,0.00024657,2]
[321665571,1712363441603,-514.67073701,0.00024657,2]
[321665572,1712363441612,-500.0,0.00024657,2]
[321665573,1712363441621,-500.0,0.00024657,2]
[321665574,1712363441631,-500.0,0.00024657,2]
[321665575,1712363441640,-500.0,0.00024657,2]
[321665576,1712363441649,-500.0,0.00024657,2]
[321665577,1712363441658,-500.0,0.00024657,2]
[321665578,1712363441668,-500.0,0.00024657,2]
[321665579,1712363441677,-500.0,0.00024657,2]
[321665580,1712363441686,-500.0,0.00024657,2]
[321665581,1712363441695,-550.28784844,0.00024657,2]
[321665582,1712363441704,-500.0,0.00024657,2]
[321665583,1712363441714,-500.0,0.00024657,2]
[321665584,1712363441723,-500.0,0.00024657,2]
[321665585,1712363441732,-500.0,0.00024657,2]
[321665586,1712363441741,-500.0,0.00024657,2]
[321665587,1712363441751,-500.0,0.00024657,2]
[321665588,1712363441761,-500.0,0.00024657,2]
[321665589,1712363441770,-500.0,0.00024657,2]
[321665590,1712363441780,-374.49889097,0.00024657,2]
[321665591,1712363441789,-182.64,0.00024657,2]
[321665592,1712363441798,-538.22669675,0.00024657,2]
[321665593,1712363441808,-500.0,0.00024657,2]
[321665594,1712363441818,-500.0,0.00024657,2]
[321665595,1712363441830,-500.0,0.00024657,2]
[321665596,1712363441839,-500.0,0.00024657,2]
[321665597,1712363441849,-500.0,0.00024657,2]
[321665598,1712363441859,-500.0,0.00024657,2]
[321665599,1712363441868,-500.0,0.00024657,2]
[321665600,1712363441877,-500.0,0.00024657,2]
[321665601,1712363441886,-600.33288074,0.00024657,2]
[321665602,1712363441896,-150.0,0.00024657,2]
[321665603,1712363441906,-500.0,0.00024657,2]
[321665604,1712363441915,-150.0,0.00024657,2]
[321665605,1712363441925,-500.0,0.00024657,2]
[321665606,1712363441934,-500.0,0.00024657,2]
[321665607,1712363441943,-150.0,0.00024657,2]
[321665608,1712363441952,-500.0,0.00024657,2]
[321665609,1712363441961,-500.0,0.00024657,2]
[321665610,1712363441970,-500.0,0.00024657,2]
[321665611,1712363441979,-500.0,0.00024657,2]
[321665612,1712363441989,-500.0,0.00024657,2]
[321665613,1712363441998,-500.0,0.00024657,2]
[321665614,1712363442008,-500.0,0.00024657,2]
[321665615,1712363442017,-500.0,0.00024657,2]
[321665616,1712363442026,-541.55387759,0.00024657,2]
[321665617,1712363442036,-500.0,0.00024657,2]
[321665618,1712363442045,-500.0,0.00024657,2]
[321665619,1712363442055,-500.0,0.00024657,2]
[321665620,1712363442064,-500.0,0.00024657,2]
[321665621,1712363442073,-500.0,0.00024657,2]
[321665622,1712363442083,-500.0,0.00024657,2]
[321665623,1712363442092,-500.0,0.00024657,2]
[321665624,1712363442101,-500.0,0.00024657,2]
[321665625,1712363442111,-500.0,0.00024657,2]
[321665626,1712363442120,-500.0,0.00024657,2]
[321665627,1712363442129,-500.0,0.00024657,2]
[321665628,1712363442139,-500.0,0.00024657,2]
[321665629,1712363442148,-500.0,0.00024657,2]
[321665630,1712363442158,-500.0,0.00024657,2]
[321665631,1712363442167,-500.0,0.00024657,2]
[321665632,1712363442177,-500.0,0.00024657,2]
[321665633,1712363442186,-500.0,0.00024657,2]
[321665634,1712363442196,-500.0,0.00024657,2]
[321665635,1712363442205,-500.0,0.00024657,2]
[321665636,1712363442214,-500.0,0.00024657,2]
[321665637,1712363442223,-500.0,0.00024657,2]
[321665638,1712363442392,-500.0,0.00024657,2]
[321665639,1712363442423,-243.01,0.00024657,2]
[321665640,1712363442434,-500.0,0.00024657,2]
[321665641,1712363442443,-500.0,0.00024657,2]
[321665642,1712363442453,-500.0,0.00024657,2]
[321665643,1712363442462,-500.0,0.00024657,2]